bitfinex/quotes_SOLUSD_20240708
["timestamp","ask_amount","ask_price","bid_price","bid_amount"]
[1720407732158,100.0,131.86,131.79,16.0603]
[1720407732366,100.0,131.86,131.8,0.17]
[1720407733851,100.0,131.84,131.78,5.9878516]
[1720407734061,100.0,131.84,131.77,16.5002]
[1720407734864,100.0,131.86,131.77,16.5002]
[1720407735052,106.2151,131.9,131.77,16.5002]
[1720407735245,6.2151,131.9,131.79,39.62]
[1720407735568,116.217,131.92,131.8,20.8246]
[1720407735569,100.0,131.92,131.8,20.8246]
[1720407735867,100.0,131.92,131.81,20.0]
[1720407736362,100.0,131.92,131.82,0.17]
[1720407736561,100.0,131.88,131.81,20.0]
[1720407738668,100.0,131.86,131.81,20.0]
[1720407739053,100.0,131.88,131.81,20.0]
[1720407739355,100.0,131.86,131.81,20.0]
[1720407740156,100.0,131.84,131.81,20.0]
[1720407740571,100.0,131.84,131.78,5.93761703]
[1720407740761,100.0,131.84,131.77,4.6641]
[1720407741845,100.0,131.84,131.77,24.6641]
[1720407742552,6.5969,131.88,131.77,24.6641]
[1720407742553,100.0,131.86,131.77,24.6641]
[1720407742748,100.0,131.86,131.78,0.17]
[1720407743453,100.0,131.84,131.77,30.71798853]
[1720407743979,100.0,131.82,131.77,30.71798853]
[1720407744155,100.0,131.84,131.77,30.71798853]
[1720407744776,100.0,131.84,131.77,24.6641]
[1720407744952,100.0,131.82,131.76,16.1446]
[1720407745148,100.0,131.8,131.74,4.6641]
[1720407745375,0.17,131.79,131.73,15.5026]
[1720407745591,0.17,131.79,131.7,4.6641]
[1720407745592,100.0,131.77,131.7,20.1667]
[1720407745959,0.17,131.79,131.7,15.5026]
[1720407745960,100.0,131.75,131.7,15.5026]
[1720407746552,100.0,131.75,131.67,65.78229241]
[1720407748573,100.0,131.73,131.67,20.1667]
[1720407749166,100.0,131.73,131.68,20.0]
[1720407750077,100.0,131.75,131.68,59.62]
[1720407750463,100.0,131.73,131.68,59.62]
[1720407750853,100.0,131.76,131.68,59.62]
[1720407751270,0.17,131.75,131.68,59.62]
[1720407751860,100.0,131.72,131.68,20.0]
[1720407752180,100.0,131.72,131.67,15.5026]
[1720407752479,100.17,131.75,131.67,15.5026]
[1720407753180,100.0,131.75,131.68,20.0]
[1720407753389,100.0,131.77,131.68,20.0]
[1720407753684,100.0,131.77,131.68,59.62]
[1720407754586,100.0,131.77,131.69,0.17]
[1720407755284,100.0,131.77,131.68,59.62]
[1720407755789,100.0,131.73,131.68,59.62]
[1720407755968,100.0,131.71,131.68,59.62]
[1720407756280,100.0,131.71,131.68,20.0]
[1720407756967,100.0,131.71,131.67,15.5026]
[1720407757183,100.0,131.72,131.67,15.5026]
[1720407757881,100.17,131.76,131.67,15.5026]
[1720407758060,100.0,131.73,131.67,15.5026]
[1720407758268,100.0,131.73,131.68,20.0]
[1720407765598,100.0,131.71,131.68,20.0]
[1720407766572,100.0,131.71,131.7,35.31]
[1720407766769,100.0,131.71,131.7,55.31]
[1720407768293,100.0,131.69,131.64,20.2866]
[1720407768485,100.0,131.69,131.65,35.31]
[1720407769091,100.0,131.67,131.65,35.31]
[1720407769395,100.0,131.69,131.65,35.31]
[1720407770774,23.0309,131.75,131.66,20.0]
[1720407770775,100.0,131.71,131.66,20.0]
[1720407770998,123.0309,131.75,131.68,35.31]
[1720407771210,123.0309,131.75,131.69,20.0]
[1720407771694,100.0,131.7,131.69,20.0]
[1720407773297,100.0,131.72,131.69,20.0]
[1720407773793,100.0,131.7,131.69,20.0]
[1720407774898,100.0,131.7,131.68,35.31]
[1720407775093,100.0,131.7,131.69,20.0]
[1720407777098,100.0,131.72,131.69,20.0]
[1720407778279,100.0,131.7,131.67,34.81]
[1720407778592,100.0,131.7,131.68,20.0]
[1720407780291,100.0,131.68,131.61,16.1392]
[1720407780497,100.0,131.68,131.66,35.31]
[1720407780693,23.0309,131.75,131.66,35.31]
[1720407780694,100.0,131.74,131.66,35.31]
[1720407781096,100.0,131.76,131.7,35.31]
[1720407781400,100.0,131.76,131.73,35.31]
[1720407782313,6.3845,131.79,131.74,20.0]
[1720407782493,100.0,131.8,131.76,35.31]
[1720407782794,100.0,131.78,131.76,35.31]
[1720407784094,115.4678,131.81,131.76,35.31]
[1720407784402,115.4678,131.81,131.75,35.31]
[1720407784590,100.0,131.81,131.75,35.31]
[1720407784797,100.0,131.81,131.78,35.31]
[1720407785191,100.0,131.79,131.78,35.31]
[1720407786406,100.0,131.81,131.78,35.31]
[1720407787387,6.1106,131.82,131.78,35.31]
[1720407787592,100.0,131.85,131.81,35.31]
[1720407787908,100.0,131.88,131.84,35.31]
[1720407789610,100.0,131.86,131.84,35.31]
[1720407791712,100.0,131.84,131.8,15.5177]
[1720407791910,100.0,131.84,131.82,35.31]
[1720407792219,100.0,131.86,131.83,20.0]
[1720407792520,100.0,131.86,131.85,35.31]
[1720407794004,100.0,131.84,131.83,20.0]
[1720407794204,100.0,131.84,131.82,35.31]
[1720407794410,100.0,131.84,131.83,20.0]
[1720407794803,100.0,131.88,131.83,20.0]
[1720407795009,100.0,131.88,131.85,35.31]
[1720407795330,6.3983,131.91,131.85,35.31]
[1720407795704,100.0,131.9,131.85,35.31]
[1720407796202,100.0,131.87,131.85,35.31]
[1720407797017,100.0,131.89,131.85,35.31]
[1720407798925,100.0,131.87,131.86,20.0]
[1720407799429,100.0,131.89,131.86,20.0]
[1720407799924,100.0,131.87,131.86,20.0]
[1720407800102,100.0,131.87,131.85,35.31]
[1720407800307,100.0,131.89,131.85,35.31]
[1720407802224,100.0,131.91,131.86,20.0]
[1720407802526,6.2229,131.94,131.88,35.31]
[1720407802732,6.2229,131.94,131.89,20.0]
[1720407803025,116.5692,131.96,131.91,35.31]
[1720407803740,100.0,131.92,131.79,20.4852]
[1720407804022,100.0,131.94,131.88,35.31]
[1720407804238,16.5692,131.96,131.91,35.31]
[1720407804239,116.5692,131.96,131.91,35.31]
[1720407805012,100.0,131.96,131.91,35.31]
[1720407805533,100.0,131.94,131.91,35.31]
[1720407806726,100.0,131.91,131.88,35.31]
[1720407806931,100.0,131.89,131.87,35.31]
[1720407807707,100.0,131.91,131.87,35.31]
[1720407808418,100.0,131.93,131.87,35.31]
[1720407808925,16.574,131.94,131.87,35.31]
[1720407809133,100.0,131.93,131.87,35.31]
[1720407810013,100.0,131.93,131.9,35.31]
[1720407811038,100.17,131.96,131.9,35.31]
[1720407811246,360.1,131.97,131.91,20.0]
[1720407813335,100.0,131.94,131.91,20.0]
[1720407813827,100.0,131.92,131.85,16.3106]
[1720407814027,100.0,131.92,131.88,35.31]
[1720407814337,100.0,131.9,131.88,35.31]
[1720407815411,100.0,131.92,131.88,35.31]
[1720407817435,260.1,131.97,131.91,35.31]
[1720407817735,260.1,131.97,131.92,20.0]
[1720407818313,100.0,131.94,131.92,20.0]
[1720407820446,360.1,131.97,131.92,20.0]
[1720407822030,100.0,131.97,131.92,20.0]
[1720407824819,100.0,131.94,131.92,20.0]
[1720407825548,100.0,131.94,131.89,20.0]
[1720407826031,100.0,131.92,131.88,35.31]
[1720407827931,100.0,131.9,131.88,35.31]
[1720407828744,100.0,131.87,131.83,6.16252205]
[1720407828955,100.0,131.9,131.86,35.31]
[1720407829248,100.0,131.92,131.86,35.31]
[1720407829456,260.1,131.95,131.89,35.31]
[1720407829667,100.0,131.98,131.92,35.31]
[1720407830143,100.0,131.96,131.92,35.31]
[1720407830342,100.0,131.93,131.88,16.3169]
[1720407830533,100.0,131.93,131.89,55.31]
[1720407830857,16.7145024,131.99,131.89,55.31]
[1720407831329,100.0,131.96,131.89,55.31]
[1720407831530,0.17,131.95,131.89,55.31]
[1720407831919,100.17,131.96,131.89,55.31]
[1720407832119,0.17,131.96,131.89,55.31]
[1720407832324,100.17,131.96,131.89,55.31]
[1720407833147,100.0,131.94,131.89,55.31]
[1720407833355,100.0,131.92,131.89,20.0]
[1720407834845,100.0,131.94,131.89,20.0]
[1720407836356,100.17,131.96,131.89,20.0]
[1720407836655,0.8520024,131.99,131.95,35.31]
[1720407837065,0.8520024,131.99,131.96,20.0]
[1720407837239,0.8520024,131.99,131.98,35.31]
[1720407840369,100.0,131.97,131.96,20.0]
[1720407840660,100.0,131.97,131.93,35.31]
[1720407840842,6.5032,131.98,131.93,35.31]
[1720407841039,6.3332,131.98,131.93,35.31]
[1720407841256,100.8520024,131.99,131.93,35.31]
[1720407841652,100.0,131.92,131.85,15.1481]
[1720407841851,100.0,131.9,131.87,35.31]
[1720407842173,100.0,131.92,131.87,35.31]
[1720407842460,100.0,131.9,131.87,35.31]
[1720407842672,100.0,131.9,131.84,4.6641]
[1720407843041,100.0,131.92,131.84,4.6641]
[1720407843555,0.17,131.94,131.83,45.69328646]
[1720407843556,100.0,131.88,131.83,45.69328646]
[1720407843867,100.0,131.9,131.83,45.69328646]
[1720407844160,100.0,131.93,131.83,45.69328646]
[1720407844357,100.0,131.93,131.84,20.0]
[1720407844835,100.0,131.9,131.84,20.0]
[1720407846750,100.0,131.88,131.83,45.69328646]
[1720407846958,100.0,131.88,131.83,39.61]
[1720407847186,100.0,131.88,131.82,16.1426]
[1720407847463,100.0,131.85,131.82,16.1426]
[1720407847665,100.0,131.85,131.78,15.187]
[1720407847960,100.0,131.85,131.77,4.6641]
[1720407848176,100.0,131.85,131.77,10.66255451]
[1720407848343,100.0,131.85,131.77,4.6641]
[1720407848546,100.0,131.83,131.77,4.6641]
[1720407849048,100.0,131.85,131.77,24.6641]
[1720407849448,100.0,131.82,131.77,24.6641]
[1720407849862,100.0,131.8,131.72,46.64132128]
[1720407850038,100.0,131.8,131.72,39.61]
[1720407850240,100.0,131.82,131.72,39.61]
[1720407850665,100.0,131.8,131.72,39.61]
[1720407851169,100.0,131.8,131.7,19.8173]
[1720407851170,100.0,131.78,131.67,20.74532577]
[1720407851348,0.17,131.77,131.67,44.2741]
[1720407851750,30.0,131.77,131.67,44.2741]
[1720407852171,100.0,131.78,131.67,44.2741]
[1720407852773,100.0,131.75,131.67,44.2741]
[1720407853356,100.0,131.75,131.67,50.19212633]
[1720407853761,100.0,131.75,131.68,20.0]
[1720407854082,100.0,131.77,131.68,20.0]
[1720407854576,6.6636,131.8,131.68,20.0]
[1720407854577,100.0,131.73,131.68,20.0]
[1720407855459,100.0,131.71,131.63,4.6641]
[1720407855773,100.0,131.71,131.64,39.61]
[1720407856273,100.0,131.73,131.63,10.8488133]
[1720407856477,100.0,131.69,131.63,10.8488133]
[1720407856656,100.0,131.69,131.63,6.1847133]
[1720407856858,100.0,131.69,131.61,16.3568]
[1720407857359,6.5364,131.72,131.6,45.52135639]
[1720407857360,100.0,131.67,131.6,45.52135639]
[1720407857559,100.0,131.67,131.59,4.6641]
[1720407857755,100.0,131.67,131.56,15.9047]
[1720407857964,100.0,131.67,131.56,55.5147]
[1720407859266,100.0,131.65,131.57,20.0]
[1720407859865,100.0,131.65,131.56,55.6847]
[1720407860173,100.0,131.65,131.56,61.49728628]
[1720407860360,100.0,131.63,131.56,45.59258628]
[1720407860565,100.0,131.63,131.56,5.98258628]
[1720407860775,100.0,131.63,131.53,40.4620024]
[1720407861661,100.0,131.63,131.54,20.0]
[1720407861861,6.3543,131.64,131.54,20.0]
[1720407862063,6.3543,131.64,131.55,0.17]
[1720407862289,6.3543,131.64,131.57,39.61]
[1720407862462,6.3543,131.64,131.58,20.0]
[1720407862769,106.3543,131.64,131.58,20.0]
[1720407862977,100.0,131.62,131.58,20.0]
[1720407864091,6.3543,131.64,131.58,20.0]
[1720407865159,106.3543,131.64,131.58,20.0]
[1720407867083,100.0,131.62,131.58,20.0]
[1720407868888,6.3543,131.64,131.58,20.0]
[1720407869586,100.0,131.63,131.58,20.0]
[1720407870087,100.0,131.61,131.58,20.0]
[1720407870786,100.0,131.61,131.55,0.17]
[1720407870967,106.3543,131.64,131.55,0.17]
[1720407871670,100.0,131.61,131.55,0.17]
[1720407872075,100.0,131.59,131.54,20.0]
[1720407872681,100.0,131.59,131.57,35.38]
[1720407873183,100.0,131.59,131.55,35.38]
[1720407873883,100.0,131.59,131.53,0.8520024]
[1720407874082,100.0,131.57,131.53,0.8520024]
[1720407874292,100.0,131.57,131.54,35.38]
[1720407874467,100.0,131.57,131.55,20.0]
[1720407874670,100.0,131.57,131.53,0.8520024]
[1720407874893,100.0,131.57,131.55,35.38]
[1720407875088,100.0,131.57,131.56,20.0]
[1720407876302,100.0,131.55,131.53,0.8520024]
[1720407877194,30.0,131.54,131.53,0.8520024]
[1720407878081,30.0,131.54,131.53,36.2320024]
[1720407878278,130.0,131.54,131.53,36.2320024]
[1720407878675,130.0,131.54,131.53,0.8520024]
[1720407878875,130.17,131.54,131.53,0.8520024]
[1720407879298,130.0,131.54,131.53,0.8520024]
[1720407880693,100.0,131.54,131.53,0.8520024]
[1720407881083,6.4768,131.57,131.53,0.8520024]
[1720407881385,100.0,131.56,131.53,0.8520024]
[1720407881792,100.0,131.6,131.53,0.8520024]
[1720407882098,100.0,131.58,131.53,0.8520024]
[1720407884791,100.0,131.6,131.53,0.8520024]
[1720407885184,100.0,131.6,131.54,1.40288563]
[1720407885387,100.0,131.6,131.53,0.8520024]
[1720407885589,100.0,131.6,131.54,0.17]
[1720407886181,23.0406,131.61,131.53,0.8520024]
[1720407886182,100.0,131.58,131.53,0.8520024]
[1720407886916,100.0,131.56,131.53,0.8520024]
[1720407887301,100.0,131.58,131.53,0.8520024]
[1720407887678,100.17,131.6,131.53,0.8520024]
[1720407887884,100.0,131.58,131.53,0.8520024]
[1720407888097,100.0,131.54,131.53,0.8520024]
[1720407888699,100.0,131.56,131.53,0.8520024]
[1720407889774,100.0,131.58,131.53,0.8520024]
[1720407891185,100.0,131.55,131.53,0.8520024]
[1720407891992,100.0,131.59,131.53,0.8520024]
[1720407892592,100.0,131.56,131.53,0.8520024]
[1720407893721,100.0,131.54,131.53,0.8520024]
[1720407895202,122.4292,131.54,131.53,0.8520024]
[1720407897289,122.5992,131.54,131.53,0.8520024]
[1720407897980,122.4292,131.54,131.53,0.8520024]
[1720407898387,100.0,131.57,131.53,0.8520024]
[1720407899112,100.0,131.54,131.53,0.8520024]
[1720407899786,100.17,131.54,131.53,0.8520024]
[1720407902422,100.0,131.54,131.53,0.8520024]
[1720407902787,100.0,131.57,131.53,0.8520024]
[1720407903302,100.0,131.59,131.55,35.4]
[1720407903612,100.0,131.57,131.53,0.8520024]
[1720407904702,100.0,131.55,131.53,0.8520024]
[1720407905799,0.17,131.54,131.53,0.8520024]
[1720407909715,116.3361,131.55,131.53,0.8520024]
[1720407911441,0.17,131.54,131.53,0.8520024]
[1720407912725,100.0,131.49,131.42,16.4433]
[1720407913429,100.0,131.44,131.4,0.8520024]
[1720407914798,100.0,131.46,131.4,0.8520024]
[1720407915231,100.0,131.44,131.4,0.8520024]
[1720407916024,100.0,131.44,131.4,20.8520024]
[1720407916940,22.0581,131.49,131.4,0.8520024]
[1720407916941,100.0,131.41,131.4,0.8520024]
[1720407919907,100.0,131.43,131.4,0.8520024]
[1720407922221,100.0,131.45,131.4,0.8520024]
[1720407924626,100.0,131.43,131.4,0.8520024]
[1720407924921,100.0,131.41,131.4,0.8520024]
[1720407927827,121.5112,131.41,131.4,0.8520024]
[1720407929328,100.0,131.35,131.29,6.00205511]
[1720407929641,100.0,131.42,131.31,39.83]
[1720407930016,100.0,131.4,131.31,39.83]
[1720407930320,100.0,131.4,131.32,0.17]
[1720407930737,100.0,131.4,131.32,20.17]
[1720407931326,0.17,131.39,131.32,20.0]
[1720407931652,100.0,131.37,131.28,19.6943]
[1720407931965,100.0,131.35,131.28,15.0302]
[1720407932327,23.1207,131.37,131.28,15.0302]
[1720407932328,123.1207,131.37,131.28,15.0302]
[1720407932841,100.0,131.37,131.28,15.0302]
[1720407933148,100.0,131.37,131.29,59.83]
[1720407933319,122.6768,131.41,131.3,0.17]
[1720407933824,100.0,131.36,131.29,59.83]
[1720407935241,100.0,131.34,131.29,59.83]
[1720407935442,100.0,131.36,131.29,20.0]
[1720407936546,100.0,131.34,131.29,20.0]
[1720407938231,100.0,131.32,131.29,20.0]
[1720407939038,100.0,131.32,131.27,20.8520024]
[1720407942221,100.0,131.34,131.27,20.8520024]
[1720407943314,100.0,131.36,131.27,20.8520024]
[1720407943746,100.0,131.38,131.27,20.8520024]
[1720407943959,100.0,131.38,131.29,16.462]
[1720407944127,100.0,131.38,131.3,20.17]
[1720407944327,100.0,131.36,131.3,20.0]
[1720407945747,100.0,131.33,131.3,20.0]
[1720407947137,100.0,131.33,131.27,20.8520024]
[1720407948741,100.0,131.31,131.27,20.8520024]
[1720407948928,100.0,131.33,131.27,22.3415882]
[1720407949129,100.0,131.35,131.27,22.3415882]
[1720407949746,100.0,131.35,131.27,21.8415882]
[1720407950753,100.0,131.33,131.27,20.3520024]
[1720407952751,100.0,131.31,131.27,20.3520024]
[1720407953439,100.0,131.31,131.27,0.3520024]
[1720407953831,100.0,131.29,131.27,0.3520024]
[1720407955349,0.17,131.28,131.27,0.3520024]
[1720407956050,6.5769,131.28,131.27,0.3520024]
[1720407958037,100.0,131.3,131.27,0.3520024]
[1720407959151,0.17,131.31,131.27,0.3520024]
[1720407959448,6.0326,131.32,131.27,0.3520024]
[1720407960237,100.0,131.3,131.27,0.3520024]
[1720407960448,100.0,131.28,131.27,0.3520024]
[1720407960650,106.0326,131.32,131.27,0.3520024]
[1720407961037,100.0,131.34,131.27,0.3520024]
[1720407961237,21.6062,131.36,131.27,0.3520024]
[1720407961440,100.0,131.37,131.27,0.3520024]
[1720407962132,100.0,131.37,131.28,0.17]
[1720407962334,6.0326,131.39,131.3,20.7887]
[1720407962335,100.0,131.39,131.3,20.7887]
[1720407962541,21.6062,131.44,131.33,39.83]
[1720407962542,100.0,131.43,131.33,39.83]
[1720407962751,100.0,131.43,131.34,20.0]
[1720407963049,100.0,131.4,131.34,20.0]
[1720407963446,21.6062,131.44,131.3,20.7887]
[1720407963447,100.0,131.38,131.3,20.7887]
[1720407963664,100.0,131.38,131.31,20.0]
[1720407965139,100.0,131.41,131.31,20.0]
[1720407965741,100.0,131.41,131.31,59.83]
[1720407967568,100.0,131.37,131.31,59.83]
[1720407967760,100.0,131.37,131.31,20.0]
[1720407969756,21.6062,131.44,131.31,20.0]
[1720407969757,100.0,131.35,131.31,20.0]
[1720407970453,100.0,131.35,131.29,20.0]
[1720407970760,100.0,131.35,131.27,26.3844844]
[1720407971665,100.0,131.35,131.27,20.3520024]
[1720407971986,100.0,131.33,131.27,0.3520024]
[1720407972474,100.0,131.31,131.27,0.3520024]
[1720407973061,100.0,131.29,131.27,0.3520024]
[1720407973277,100.0,131.31,131.27,0.3520024]
[1720407975659,0.17,131.3,131.27,0.3520024]
[1720407978660,100.0,131.31,131.27,0.3520024]
[1720407978883,100.0,131.33,131.27,0.3520024]
[1720407979257,21.6914,131.36,131.27,0.3520024]
[1720407979258,100.0,131.35,131.27,15.5480024]
[1720407979685,100.0,131.37,131.27,15.5480024]
[1720407979897,100.0,131.4,131.3,39.83]
[1720407980076,100.0,131.4,131.31,20.0]
[1720407980881,100.0,131.4,131.32,1.52283102]
[1720407981385,100.0,131.37,131.31,20.0]
[1720407981591,100.0,131.37,131.28,20.17]
[1720407982864,100.17,131.39,131.28,20.17]
[1720407983088,100.17,131.39,131.29,39.83]
[1720407983270,100.17,131.39,131.3,20.17]
[1720407984686,100.0,131.37,131.27,15.5480024]
[1720407984886,100.0,131.35,131.27,15.5480024]
[1720407985065,0.17,131.34,131.27,15.5480024]
[1720407986290,100.0,131.37,131.27,15.5480024]
[1720407986464,100.0,131.37,131.28,20.0]
[1720407986662,0.17,131.36,131.28,20.0]
[1720407986865,100.0,131.35,131.28,20.0]
[1720407987786,0.17,131.34,131.28,20.0]
[1720407988195,100.0,131.35,131.28,20.0]
[1720407988488,100.0,131.41,131.29,39.83]
[1720407988696,100.0,131.41,131.3,20.0]
[1720407989388,100.0,131.41,131.31,0.17]
[1720407989873,100.0,131.41,131.32,21.0292]
[1720407990058,100.0,131.44,131.33,60.0]
[1720407990785,100.0,131.4,131.33,59.83]
[1720407991685,100.0,131.39,131.28,15.2936]
[1720407992041,100.0,131.37,131.28,15.2936]
[1720407992985,100.0,131.37,131.29,20.0]
[1720407995779,100.0,131.39,131.3,0.17]
[1720407995985,100.0,131.41,131.3,0.17]
[1720407997007,100.0,131.41,131.32,22.86]
[1720407997185,15.9219,131.48,131.37,39.83]
[1720407997384,115.9219,131.48,131.38,20.0]
[1720407997802,100.0,131.48,131.38,20.0]
[1720407998418,100.0,131.51,131.41,39.83]
[1720407998711,100.0,131.52,131.42,20.17]
[1720407999495,100.0,131.5,131.42,20.0]
[1720407999889,100.0,131.5,131.4,20.0]
[1720408000211,100.0,131.52,131.41,0.17]
[1720408000701,0.17,131.51,131.41,0.17]
[1720408000893,100.0,131.5,131.41,0.17]
[1720408001099,100.0,131.48,131.41,0.17]
[1720408001300,100.0,131.5,131.41,0.17]
[1720408001899,0.17,131.51,131.41,0.17]
[1720408002210,100.0,131.48,131.41,0.17]
[1720408002408,100.0,131.48,131.4,20.0]
[1720408003716,100.0,131.45,131.39,20.0601]
[1720408004513,100.0,131.43,131.38,39.83]
[1720408005717,100.0,131.43,131.39,20.0]
[1720408006599,100.0,131.43,131.35,19.9272]
[1720408007398,100.0,131.41,131.32,39.83]
[1720408008612,100.0,131.37,131.31,19.7203]
[1720408008798,100.0,131.39,131.31,19.7203]
[1720408008998,100.0,131.39,131.28,39.83]
[1720408009225,100.0,131.35,131.27,0.3520024]
[1720408009995,100.0,131.35,131.27,6.49144492]
[1720408010607,100.0,131.31,131.27,6.49144492]
[1720408010801,100.0,131.31,131.27,0.3520024]
[1720408011225,100.0,131.34,131.27,0.3520024]
[1720408011413,100.0,131.31,131.27,0.3520024]
[1720408012203,100.0,131.33,131.27,0.3520024]
[1720408012523,0.17,131.34,131.27,0.3520024]
[1720408012713,0.17,131.34,131.27,20.3520024]
[1720408013530,100.0,131.35,131.27,20.3520024]
[1720408014030,100.0,131.37,131.27,20.3520024]
[1720408014230,100.0,131.33,131.27,20.3520024]
[1720408015023,100.0,131.35,131.27,20.3520024]
[1720408015223,100.0,131.37,131.28,16.3742]
[1720408015429,100.0,131.39,131.29,20.0]
[1720408015608,121.3545,131.4,131.29,20.0]
[1720408015812,100.0,131.35,131.29,20.0]
[1720408017517,100.0,131.37,131.29,20.0]
[1720408018731,100.0,131.39,131.29,20.0]
[1720408019129,100.0,131.37,131.29,20.0]
[1720408019840,100.0,131.37,131.29,19.5]
[1720408020220,100.0,131.37,131.3,4.6641]
[1720408020738,100.0,131.34,131.29,19.5]
[1720408022546,100.0,131.32,131.27,0.3520024]
[1720408022946,100.0,131.3,131.27,0.3520024]
[1720408023126,100.0,131.32,131.27,0.3520024]
[1720408023320,100.0,131.34,131.27,0.3520024]
[1720408023525,15.1827,131.4,131.27,40.1820024]
[1720408023526,100.0,131.36,131.27,40.1820024]
[1720408023922,100.0,131.36,131.28,20.0]
[1720408024132,100.0,131.33,131.28,20.0]
[1720408024343,100.0,131.31,131.28,20.0]
[1720408024723,100.0,131.33,131.28,20.0]
[1720408025031,100.0,131.35,131.28,20.0]
[1720408025345,100.0,131.35,131.29,16.0497]
[1720408025643,100.0,131.37,131.3,20.0]
[1720408026228,100.0,131.35,131.3,20.0]
[1720408026428,100.0,131.33,131.3,20.0]
[1720408027527,6.4608,131.39,131.27,0.3520024]
[1720408027528,100.0,131.31,131.27,0.3520024]
[1720408027935,100.0,131.35,131.27,0.3520024]
[1720408028157,100.0,131.37,131.28,39.83]
[1720408028447,100.0,131.35,131.28,39.83]
[1720408028648,100.0,131.33,131.28,39.83]
[1720408028947,6.4608,131.39,131.29,20.0]
[1720408028948,100.0,131.35,131.29,20.0]
[1720408029129,100.0,131.33,131.29,20.0]
[1720408029332,100.0,131.31,131.29,20.0]
[1720408029925,0.17,131.34,131.29,20.0]
[1720408029926,100.0,131.33,131.29,20.0]
[1720408030120,100.0,131.35,131.29,20.0]
[1720408032249,100.0,131.33,131.28,39.83]
[1720408032450,100.0,131.31,131.27,0.3520024]
[1720408033320,106.0404,131.33,131.27,0.3520024]
[1720408033526,100.0,131.34,131.27,0.3520024]
[1720408033725,100.0,131.36,131.27,0.3520024]
[1720408034443,6.0404,131.38,131.28,4.6641]
[1720408034753,106.0404,131.38,131.29,39.83]
[1720408034954,100.0,131.38,131.3,20.0]
[1720408037253,115.5912,131.43,131.33,39.83]
[1720408037468,115.5912,131.43,131.34,20.0]
[1720408038536,100.0,131.41,131.34,20.0]
[1720408039638,115.5912,131.43,131.34,20.0]
[1720408039840,100.0,131.41,131.34,20.0]
[1720408040248,15.5912,131.43,131.33,39.83]
[1720408040249,100.0,131.38,131.33,39.83]